fUST/lending_fUST_20240110
["ID","MTS","AMOUNT","RATE_DAILY","PERIOD"]
[311076954,1704897043635,-155.0,0.00028767,2]
[311076955,1704897043646,-500.0,0.00028767,2]
[311076956,1704897043656,-500.0,0.00028767,2]
[311076957,1704897043665,-179.36974912,0.00028849,2]
[311076958,1704897043675,-439.01,0.00029,2]
[311076959,1704897043685,-500.0,0.00029041,2]
[311076960,1704897043695,-500.0,0.00029041,2]
[311076961,1704897043704,-246.74,0.00029041,2]
[311076962,1704897043713,-500.0,0.00029041,2]
[311076963,1704897043724,-500.0,0.00029041,2]
[311076964,1704897043733,-500.0,0.00029041,2]
[311076965,1704897043743,-500.0,0.00029041,2]
[311076966,1704897043753,-511.58,0.00029041,2]
[311076967,1704897043762,-500.0,0.00029041,2]
[311076968,1704897043772,-500.0,0.00029041,2]
[311076970,1704897043781,-500.0,0.00029041,2]
[311076971,1704897043790,-6921.06,0.00029041,2]
[311076973,1704897043801,-970.1,0.00029041,2]
[311076975,1704897043810,-500.0,0.00029041,2]
[311076977,1704897043819,-500.0,0.00029041,2]
[311076978,1704897043829,-500.0,0.00029041,2]
[311076979,1704897043838,-500.0,0.00029041,2]
[311076980,1704897043847,-275.49755677,0.00029041,2]
[311076981,1704897043856,-826.64,0.00029041,2]
[311076983,1704897043866,-198.68873839,0.00029041,2]
[311076984,1704897043875,-332.82,0.00029041,2]
[311076986,1704897043884,-3886.63,0.00029041,2]
[311076988,1704897043894,-500.0,0.00029041,2]
[311076990,1704897043903,-500.0,0.00029041,2]
[311076992,1704897043913,-182.14359521,0.00029041,2]
[311076993,1704897043923,-500.0,0.00029041,2]
[311076995,1704897043932,-500.0,0.00029041,2]
[311076997,1704897043941,-500.0,0.00029041,2]
[311076998,1704897043950,-500.0,0.00029041,2]
[311076999,1704897043959,-2224.96,0.00029041,2]
[311077000,1704897043968,-1006.86,0.00029041,2]
[311077001,1704897043978,-593.06,0.00029041,2]
[311077002,1704897043988,-574.37,0.00029041,2]
[311077003,1704897043998,-500.0,0.00029041,2]
[311077004,1704897044007,-947.43868379,0.00029314,2]
[311077005,1704897044016,-500.0,0.00029315,2]
[311077006,1704897044025,-500.0,0.00029315,2]
[311077007,1704897044035,-500.0,0.00029315,2]
[311077008,1704897044045,-486.0896484,0.00029315,2]
[311077009,1704897044053,-500.0,0.00029315,2]
[311077010,1704897044063,-255.07031327,0.00029315,2]
[311077011,1704897044072,-511.58,0.00029315,2]
[311077012,1704897044081,-500.0,0.00029315,2]
[311077013,1704897044091,-500.0,0.00029315,2]
[311077014,1704897044100,-500.0,0.00029315,2]
[311077015,1704897044109,-6921.06,0.00029315,2]
[311077016,1704897044215,-970.1,0.00029315,2]
[311077017,1704897044225,-500.0,0.00029315,2]
[311077018,1704897044235,-500.0,0.00029315,2]
[311077019,1704897044245,-500.0,0.00029315,2]
[311077020,1704897044254,-500.0,0.00029315,2]
[311077021,1704897044264,-826.64,0.00029315,2]
[311077022,1704897044274,-3886.63,0.00029315,2]
[311077023,1704897044283,-500.0,0.00029315,2]
[311077024,1704897044294,-500.0,0.00029315,2]
[311077025,1704897044305,-500.0,0.00029315,2]
[311077026,1704897044315,-500.0,0.00029315,2]
[311077027,1704897044324,-153.89,0.00029315,2]
[311077028,1704897044333,-500.0,0.00029315,2]
[311077029,1704897044342,-2224.96,0.00029315,2]
[311077030,1704897044352,-1006.86,0.00029315,2]
[311077031,1704897044361,-593.06,0.00029315,2]
[311077032,1704897044371,-500.0,0.00029315,2]
[311077033,1704897044380,-500.0,0.00029589,2]
[311077034,1704897044390,-500.0,0.00029589,2]
[311077035,1704897044399,-500.0,0.00029589,2]
[311077036,1704897044409,-500.0,0.00029589,2]
[311077037,1704897044418,-511.58,0.00029589,2]
[311077038,1704897044427,-500.0,0.00029589,2]
[311077039,1704897044436,-346.0635217,0.00029589,2]
[311077040,1704897044446,-500.0,0.00029589,2]
[311077041,1704897044455,-6921.06,0.00029589,2]
[311077042,1704897044464,-970.1,0.00029589,2]
[311077043,1704897044473,-500.0,0.00029589,2]
[311077044,1704897044483,-500.0,0.00029589,2]
[311077045,1704897044493,-500.0,0.00029589,2]
[311077046,1704897044503,-500.0,0.00029589,2]
[311077047,1704897044513,-826.64,0.00029589,2]
[311077048,1704897044522,-3886.63,0.00029589,2]
[311077049,1704897044532,-500.0,0.00029589,2]
[311077050,1704897044541,-500.0,0.00029589,2]
[311077051,1704897044553,-500.0,0.00029589,2]
[311077052,1704897044562,-500.0,0.00029589,2]
[311077053,1704897044572,-500.0,0.00029589,2]
[311077054,1704897044582,-2224.96,0.00029589,2]
[311077055,1704897044591,-1006.86,0.00029589,2]
[311077056,1704897044601,-593.06,0.00029589,2]
[311077057,1704897044611,-500.0,0.00029589,2]
[311077058,1704897044621,-500.0,0.00029863,2]
[311077059,1704897044630,-500.0,0.00029863,2]
[311077060,1704897044640,-500.0,0.00029863,2]
[311077061,1704897044649,-500.0,0.00029863,2]
[311077062,1704897044659,-511.58,0.00029863,2]
[311077063,1704897044668,-500.0,0.00029863,2]
[311077064,1704897044678,-500.0,0.00029863,2]
[311077065,1704897044688,-6921.06,0.00029863,2]
[311077066,1704897044697,-970.1,0.00029863,2]
[311077067,1704897044707,-500.0,0.00029863,2]
[311077068,1704897044716,-500.0,0.00029863,2]
[311077069,1704897044726,-500.0,0.00029863,2]
[311077070,1704897044735,-500.0,0.00029863,2]
[311077071,1704897044745,-826.64,0.00029863,2]
[311077072,1704897044755,-3886.63,0.00029863,2]
[311077073,1704897044765,-500.0,0.00029863,2]
[311077074,1704897044776,-500.0,0.00029863,2]
[311077075,1704897044785,-500.0,0.00029863,2]
[311077076,1704897044795,-336.31752008,0.00029863,2]
[311077077,1704897044805,-500.0,0.00029863,2]
[311077078,1704897044815,-2224.96,0.00029863,2]
[311077079,1704897044825,-1006.86,0.00029863,2]
[311077080,1704897044835,-593.06,0.00029863,2]
[311077081,1704897044845,-639.65046808,0.0003,4]
[311077082,1704897044854,-15040.0244209,0.0003,4]
[311077083,1704897044864,-1200.0,0.0003,4]
[311077084,1704897044878,-62937.61480748,0.0003,14]
[311077085,1704897044887,-236.52252731,0.0003,7]
[311077086,1704897044897,-6973.85683356,0.0003,4]
[311077087,1704897044906,-399.65900583,0.0003,4]
[311077088,1704897044918,-243.77594457,0.0003,4]
[311077089,1704897044929,-154.87609912,0.0003,2]
[311077090,1704897044938,-463.38099934,0.0003,4]
[311077091,1704897044950,-686.6335406,0.0003,4]
[311077092,1704897044959,-203.0,0.0003,2]
[311077093,1704897044969,-345.97,0.00030136,2]
[311077094,1704897044978,-150.0,0.00030136,2]
[311077095,1704897044989,-405.72525571,0.00030136,2]
[311077096,1704897044999,-500.0,0.00030136,2]
[311077097,1704897045009,-511.58,0.00030136,2]
[311077098,1704897045018,-177.63,0.00030136,2]
[311077099,1704897045027,-500.0,0.00030136,2]
[311077100,1704897045038,-6921.06,0.00030136,2]
[311077101,1704897045048,-970.1,0.00030136,2]
[311077102,1704897045057,-500.0,0.00030136,2]
[311077103,1704897045067,-500.0,0.00030136,2]
[311077104,1704897045076,-500.0,0.00030136,2]
[311077105,1704897045085,-500.0,0.00030136,2]
[311077106,1704897045094,-826.64,0.00030136,2]
[311077107,1704897045104,-3886.63,0.00030136,2]
[311077108,1704897045114,-500.0,0.00030136,2]
[311077109,1704897045123,-2224.96,0.00030136,2]
[311077110,1704897045132,-1006.86,0.00030136,2]
[311077111,1704897045141,-593.06,0.00030136,2]
[311077112,1704897045150,-3180.8731799,0.00030137,2]
[311077113,1704897045159,-155.0,0.00030137,2]
[311077114,1704897045168,-999.30048966,0.00030236,2]
[311077115,1704897045178,-1885.33457136,0.000304,2]
[311077116,1704897045187,-179.36974912,0.00030402,2]
[311077117,1704897045196,-500.0,0.0003041,2]
[311077118,1704897045205,-511.58,0.0003041,2]
[311077119,1704897045214,-617.82317733,0.0003041,2]
[311077120,1704897045222,-6921.06,0.0003041,2]
[311077121,1704897045231,-970.1,0.0003041,2]
[311077122,1704897045240,-500.0,0.0003041,2]
[311077123,1704897045249,-500.0,0.0003041,2]
[311077124,1704897045258,-500.0,0.0003041,2]
[311077125,1704897045267,-500.0,0.0003041,2]
[311077126,1704897045276,-826.64,0.0003041,2]
[311077127,1704897045285,-3886.63,0.0003041,2]
[311077128,1704897045293,-500.0,0.0003041,2]
[311077129,1704897045303,-2224.96,0.0003041,2]
[311077130,1704897045312,-1006.86,0.0003041,2]
[311077131,1704897045321,-593.06,0.0003041,2]
[311077132,1704897045330,-500.0,0.00030684,2]
[311077133,1704897045339,-511.58,0.00030684,2]
[311077134,1704897045348,-6921.06,0.00030684,2]
[311077135,1704897045357,-970.1,0.00030684,2]
[311077136,1704897045367,-500.0,0.00030684,2]
[311077137,1704897045376,-603.18,0.00030684,2]
[311077138,1704897045385,-500.0,0.00030684,2]
[311077139,1704897045394,-500.0,0.00030684,2]
[311077140,1704897045403,-826.64,0.00030684,2]
[311077141,1704897045413,-3886.63,0.00030684,2]
[311077142,1704897045423,-500.0,0.00030684,2]
[311077143,1704897045432,-2224.96,0.00030684,2]
[311077144,1704897045441,-1006.86,0.00030684,2]
[311077145,1704897045451,-593.06,0.00030684,2]
[311077146,1704897045461,-12224.0968102,0.00030875,5]
[311077147,1704897045470,-4170.86517606,0.00030887,2]
[311077148,1704897045479,-1000.0,0.00030887,7]
[311077149,1704897045489,-1000.0,0.00030887,7]
[311077150,1704897045498,-661.98149989,0.00030887,2]
[311077151,1704897045507,-189.1375714,0.00030887,2]
[311077152,1704897045517,-603.50935276,0.00030887,2]
[311077153,1704897045526,-494.0808665,0.00030887,2]
[311077154,1704897045535,-579.0321515,0.00030887,2]
[311077155,1704897045545,-1000.0,0.00030887,7]
[311077156,1704897045555,-182.20347743,0.00030887,2]
[311077157,1704897045564,-500.0,0.00030958,2]
[311077158,1704897045573,-511.58,0.00030958,2]
[311077159,1704897045583,-6921.06,0.00030958,2]
[311077160,1704897045592,-970.1,0.00030958,2]
[311077161,1704897045602,-500.0,0.00030958,2]
[311077162,1704897045612,-500.0,0.00030958,2]
[311077163,1704897045621,-500.0,0.00030958,2]
[311077164,1704897045631,-826.64,0.00030958,2]
[311077165,1704897045640,-3886.63,0.00030958,2]
[311077166,1704897045650,-500.0,0.00030958,2]
[311077167,1704897045660,-2224.96,0.00030958,2]
[311077168,1704897045670,-1006.86,0.00030958,2]
[311077169,1704897045680,-593.06,0.00030958,2]
[311077170,1704897045689,-20585.91157609,0.00031,4]
[311077171,1704897045699,-787.43,0.00031229,2]
[311077172,1704897045708,-787.43,0.00031229,2]
[311077173,1704897045718,-787.43,0.00031229,2]
[311077174,1704897045727,-787.43,0.00031229,2]
[311077175,1704897045737,-787.43,0.00031229,2]
[311077176,1704897045747,-787.43,0.00031229,2]
[311077177,1704897045756,-787.43,0.00031229,2]
[311077178,1704897045765,-787.43,0.00031229,2]
[311077179,1704897045775,-787.43,0.00031229,2]
[311077180,1704897045784,-787.43,0.00031229,2]
[311077181,1704897045793,-500.0,0.00031232,2]
[311077182,1704897045804,-511.58,0.00031232,2]
[311077183,1704897045812,-6921.06,0.00031232,2]
[311077184,1704897045822,-970.1,0.00031232,2]
[311077185,1704897045831,-500.0,0.00031232,2]
[311077186,1704897045841,-500.0,0.00031232,2]
[311077187,1704897045850,-500.0,0.00031232,2]
[311077188,1704897045860,-826.64,0.00031232,2]
[311077189,1704897045870,-3886.63,0.00031232,2]
[311077190,1704897045879,-500.0,0.00031232,2]
[311077191,1704897045889,-2224.96,0.00031232,2]
[311077192,1704897045898,-1006.86,0.00031232,2]
[311077193,1704897045907,-593.06,0.00031232,2]
[311077194,1704897045916,-5000.0,0.0003144,7]
[311077195,1704897045926,-5000.0,0.0003144,7]
[311077196,1704897045935,-500.0,0.00031506,2]
[311077197,1704897045945,-511.58,0.00031506,2]
[311077198,1704897045954,-6921.06,0.00031506,2]
[311077199,1704897045962,-970.1,0.00031506,2]
[311077200,1704897045972,-500.0,0.00031506,2]
[311077201,1704897045981,-128.17728746,0.00031506,2]
[311077202,1704897046002,-371.82271254,0.00031506,2]
[311077203,1704897046011,-500.0,0.00031506,2]
[311077204,1704897046021,-826.64,0.00031506,2]
[311077205,1704897046030,-3886.63,0.00031506,2]
[311077206,1704897046040,-500.0,0.00031506,2]
[311077207,1704897046051,-2224.96,0.00031506,2]
[311077208,1704897046060,-1006.86,0.00031506,2]
[311077209,1704897046069,-593.06,0.00031506,2]
[311077210,1704897046078,-155.0,0.00031507,2]
[311077212,1704897046088,-150.89437394,0.00031726,4]
[311077214,1704897046097,-500.0,0.0003178,2]
[311077216,1704897046106,-511.58,0.0003178,2]
[311077218,1704897046115,-6921.06,0.0003178,2]
[311077220,1704897046125,-970.1,0.0003178,2]
[311077222,1704897046134,-500.0,0.0003178,2]
[311077224,1704897046143,-500.0,0.0003178,2]
[311077226,1704897046152,-500.0,0.0003178,2]
[311077228,1704897046161,-826.64,0.0003178,2]
[311077229,1704897046170,-3886.63,0.0003178,2]
[311077231,1704897046180,-500.0,0.0003178,2]
[311077233,1704897046189,-2224.96,0.0003178,2]
[311077235,1704897046198,-1006.86,0.0003178,2]
[311077237,1704897046207,-593.06,0.0003178,2]
[311077239,1704897046216,-621.09638437,0.00031812,2]
[311077241,1704897046226,-881.94009009,0.00031829,2]
[311077242,1704897046235,-179.36974912,0.00031954,2]
[311077243,1704897046245,-153.0,0.00031978,2]
[311077244,1704897046254,-153.0,0.00031978,2]
[311077246,1704897046263,-153.0,0.00031978,2]
[311077248,1704897046273,-153.0,0.00031978,2]
[311077250,1704897046282,-153.0,0.00031978,2]
[311077252,1704897046292,-623.28078213,0.00031995,2]
[311077254,1704897046303,-2134.03260025,0.00032,4]
[311077256,1704897046312,-796.36933,0.00032,30]
[311077259,1704897046323,-104129.09,0.00032,3]
[311077260,1704897046333,-500.0,0.00032054,2]
[311077261,1704897046342,-511.58,0.00032054,2]
[311077262,1704897046352,-6921.06,0.00032054,2]
[311077263,1704897046361,-970.1,0.00032054,2]
[311077264,1704897046371,-173.0877541,0.00032054,2]
[311077266,1704897046380,-500.0,0.00032054,2]
[311077267,1704897046389,-500.0,0.00032054,2]
[311077269,1704897046398,-826.64,0.00032054,2]
[311077271,1704897046407,-3886.63,0.00032054,2]
[311077273,1704897046418,-500.0,0.00032054,2]
[311077275,1704897046427,-2224.96,0.00032054,2]
[311077276,1704897046436,-1006.86,0.00032054,2]
[311077278,1704897046446,-593.06,0.00032054,2]
[311077280,1704897046455,-500.0,0.00032328,2]
[311077282,1704897046464,-511.58,0.00032328,2]
[311077283,1704897046473,-6921.06,0.00032328,2]
[311077284,1704897046482,-970.1,0.00032328,2]
[311077285,1704897046491,-500.0,0.00032328,2]
[311077286,1704897046501,-500.0,0.00032328,2]
[311077288,1704897046510,-826.64,0.00032328,2]
[311077290,1704897046519,-3886.63,0.00032328,2]
[311077291,1704897046528,-500.0,0.00032328,2]
[311077292,1704897046537,-2224.96,0.00032328,2]
[311077293,1704897046546,-1006.86,0.00032328,2]
[311077294,1704897046556,-593.06,0.00032328,2]
[311077295,1704897046565,-150.89437394,0.00032373,2]
[311077296,1704897046574,-5000.0,0.00032479,2]
[311077297,1704897046582,-5000.01,0.00032482,2]
[311077298,1704897046591,-5000.0,0.00032483,2]
[311077299,1704897046600,-4999.99,0.00032485,2]
[311077300,1704897046609,-5000.01,0.00032485,2]
[311077301,1704897046617,-5000.0,0.00032487,2]
[311077302,1704897046714,-5000.01,0.00032491,2]
[311077303,1704897046723,-4999.99,0.00032491,2]
[311077304,1704897046732,-184.78215847,0.00032495,30]
[311077305,1704897046741,-4999.99,0.00032496,2]
[311077306,1704897046751,-143136.32267478,0.000325,20]
[311077307,1704897046881,-8743.9820779,0.00022734,2]
[311077308,1704897046890,-1821.85168105,0.00023437,2]
[311077309,1704897046899,-2079.63666476,0.00023437,2]
[311077310,1704897046908,-3072.83,0.00027387,3]
[311077311,1704897046918,-3089.70069499,0.00027998,2]
[311077312,1704897046927,-500.0,0.00029863,2]
[311077313,1704897046936,-500.0,0.00030136,2]
[311077314,1704897046945,-500.0,0.0003041,2]
[311077315,1704897046956,-500.0,0.00030684,2]
[311077316,1704897046966,-500.0,0.00030958,2]
[311077317,1704897046974,-500.0,0.00031232,2]
[311077318,1704897046983,-500.0,0.00031506,2]
[311077319,1704897046991,-356.62,0.0003178,2]
[311077320,1704897047000,-57757.27383269,0.000325,20]
[311077321,1704897047472,-500.61378219,0.00027397,2]
[311077322,1704897047482,-500.0,0.00027397,2]
[311077323,1704897047491,-486.97683336,0.00027468,2]
[311077324,1704897047500,-500.0,0.00027468,2]
[311077325,1704897047509,-500.0,0.00027468,2]
[311077326,1704897047519,-500.0,0.00027468,2]
[311077327,1704897047528,-500.0,0.00027468,2]
[311077328,1704897047537,-500.0,0.00027468,2]
[311077329,1704897047546,-500.0,0.00027468,2]
[311077330,1704897047557,-500.0,0.00027468,2]
[311077331,1704897047566,-500.0,0.00027468,2]
[311077333,1704897047576,-500.0,0.00027468,2]
[311077335,1704897047585,-391.39274329,0.00027468,2]
[311077336,1704897047594,-500.0,0.00027468,2]
[311077337,1704897047603,-500.0,0.00027468,2]
[311077338,1704897047612,-500.0,0.00027468,2]
[311077339,1704897047621,-500.0,0.00027468,2]
[311077340,1704897047630,-500.0,0.00027468,2]
[311077341,1704897047640,-500.0,0.00027468,2]
[311077342,1704897047649,-216.0471874,0.00027468,2]
[311077343,1704897047658,-500.0,0.00027468,2]
[311077344,1704897047668,-500.0,0.00027468,2]
[311077346,1704897047677,-500.0,0.00027468,2]
[311077348,1704897047686,-534.26252758,0.00027468,2]
[311077350,1704897047695,-181.31574332,0.00027468,2]
[311077351,1704897047705,-500.0,0.00027468,2]
[311077352,1704897047714,-500.0,0.00027468,2]
[311077353,1704897047723,-500.0,0.00027468,2]
[311077354,1704897047732,-500.0,0.00027468,2]
[311077355,1704897047741,-500.0,0.00027468,2]
[311077356,1704897047751,-500.0,0.00027468,2]
[311077357,1704897047760,-500.0,0.00027468,2]
[311077358,1704897047769,-500.0,0.00027468,2]
[311077359,1704897047778,-500.0,0.00027468,2]
[311077360,1704897047787,-156.45275895,0.00027468,2]
[311077361,1704897047800,-343.54724105,0.00027468,2]
[311077362,1704897047810,-500.0,0.00027468,2]
[311077363,1704897047819,-500.0,0.00027468,2]
[311077364,1704897047828,-500.0,0.00027468,2]
[311077365,1704897047838,-176.96458859,0.00027468,2]
[311077377,1704897180186,-40000.0,0.000325,20]
[311077432,1704897958352,503.76863717,0.00027397,30]
[311077440,1704898034091,-154.8915759,0.0002317,2]
[311077441,1704898034115,-154.8915759,0.00023171,4]
[311077442,1704898034135,-210.816276,0.00023172,2]
[311077443,1704898034155,-19828.39990193,0.00023721,2]
[311077444,1704898034177,-16752.38933105,0.00023722,2]
[311077446,1704898047098,-8147.61066895,0.00023722,2]
[311077447,1704898047118,-2293.16748545,0.00024332,2]
[311077448,1704898047140,-614.01289661,0.00024333,2]
[311077449,1704898047160,-166.666666,0.00024334,2]
[311077450,1704898047181,-5068.21849299,0.00024654,2]
[311077583,1704898237919,-154.8915759,0.00023913,4]
[311077585,1704898237929,-2134.50757953,0.00023914,2]
[311077587,1704898237941,-6609.47449837,0.00023914,2]
[311077588,1704898237951,-614.01289661,0.00024117,2]
[311077589,1704898237961,-166.666666,0.00024118,2]
[311077591,1704898237971,-2245.66927253,0.00024654,2]
[311077592,1704898237980,-1821.85168105,0.00024654,2]
[311077593,1704898237989,-445.47752606,0.00024654,2]
[311077594,1704898237999,-2079.63666476,0.00024654,2]
[311077595,1704898238008,-300.0,0.00024654,2]
[311077596,1704898238018,-200.0,0.00024654,2]
[311077597,1704898238030,-619.44144137,0.00024654,2]
[311077598,1704898238040,-976.0012481,0.00024656,2]
[311077599,1704898238049,-166.666666,0.00024775,2]
[311077600,1704898238059,-19828.39990193,0.00024999,2]
[311077601,1704898238068,-4711.08145103,0.00025,2]
[311077602,1704898238077,-3000.0,0.00025,2]
[311077603,1704898238087,-390.2016753,0.00025224,2]
[311077604,1704898238096,-166.666666,0.00025433,2]
[311077605,1704898238107,-525.91402641,0.00026,2]
[311077606,1704898238117,-166.666666,0.0002609,2]
[311077607,1704898238126,-166.666666,0.00026748,2]
[311077608,1704898238137,-733.25771754,0.00027385,2]
[311077609,1704898238147,-3427.07,0.00027387,3]
[311077610,1704898238158,-5487.16855115,0.00027395,2]
[311077611,1704898238168,-947.43868379,0.00027395,2]
[311077612,1704898238177,-177.93668486,0.00027395,2]
[311077613,1704898238187,-2293.16748545,0.00027395,2]
[311077614,1704898238195,-10500.0358078,0.00027396,2]
[311077615,1704898238205,-500.0,0.00027397,2]
[311077616,1704898238215,-500.0,0.00027397,2]
[311077617,1704898238224,-500.0,0.00027397,2]
[311077618,1704898238233,-500.0,0.00027397,2]
[311077619,1704898238242,-500.0,0.00027397,2]
[311077620,1704898238251,-500.0,0.00027397,2]
[311077621,1704898238260,-200.0,0.00027397,2]
[311077622,1704898238269,-154.29785145,0.00027397,2]
[311077623,1704898238280,-500.0,0.00027397,2]
[311077624,1704898238289,-500.0,0.00027397,2]
[311077625,1704898238298,-500.0,0.00027397,2]
[311077626,1704898238307,-573.80067345,0.00027397,2]
[311077627,1704898238316,-500.0,0.00027397,2]
[311077628,1704898238325,-500.0,0.00027397,2]
[311077629,1704898238334,-500.0,0.00027397,2]
[311077630,1704898238344,-500.0,0.00027397,2]
[311077631,1704898238353,-500.0,0.00027397,2]
[311077632,1704898238363,-500.0,0.00027397,2]
[311077633,1704898238372,-500.0,0.00027397,2]
[311077634,1704898238382,-504.30430713,0.00027397,2]
[311077635,1704898238391,-162.28174723,0.00027397,2]
[311077636,1704898238401,-500.0,0.00027397,2]
[311077637,1704898238412,-500.0,0.00027397,2]
[311077638,1704898238421,-500.0,0.00027397,2]
[311077639,1704898238431,-500.0,0.00027397,2]
[311077640,1704898238440,-500.0,0.00027397,2]
[311077641,1704898238450,-500.0,0.00027397,2]
[311077642,1704898238459,-215.0521032,0.00027397,2]
[311077643,1704898238468,-500.0,0.00027397,2]
[311077644,1704898238477,-155.0,0.00027397,2]
[311077645,1704898238486,-500.0,0.00027397,2]
[311077646,1704898238495,-500.0,0.00027397,2]
[311077647,1704898238504,-494.86882139,0.00027397,14]
[311077648,1704898238513,-500.0,0.00027397,2]
[311077649,1704898238524,-500.0,0.00027397,2]
[311077650,1704898238533,-500.0,0.00027397,2]
[311077651,1704898238542,-500.0,0.00027397,2]
[311077652,1704898238552,-500.0,0.00027397,2]
[311077653,1704898238561,-500.0,0.00027397,2]
[311077654,1704898238570,-465.54886148,0.00027397,2]
[311077655,1704898238579,-500.0,0.00027397,2]
[311077656,1704898238589,-510.60463476,0.00027397,2]
[311077657,1704898238598,-1000.0,0.00027397,2]
[311077658,1704898238607,-500.0,0.00027397,2]
[311077659,1704898238616,-500.0,0.00027397,2]
[311077660,1704898238626,-500.0,0.00027397,2]
[311077661,1704898238634,-500.0,0.00027397,2]
[311077662,1704898238643,-500.0,0.00027397,2]
[311077663,1704898238652,-500.0,0.00027397,2]
[311077664,1704898238661,-500.0,0.00027397,2]
[311077665,1704898238670,-153.89,0.00027397,2]
[311077666,1704898238680,-500.0,0.00027397,2]
[311077667,1704898238689,-500.0,0.00027397,2]
[311077668,1704898238698,-500.0,0.00027397,2]
[311077669,1704898238707,-500.0,0.00027397,2]
[311077670,1704898238716,-500.0,0.00027397,2]
[311077671,1704898238725,-500.0,0.00027397,2]
[311077672,1704898238853,-500.0,0.00027397,2]
[311077673,1704898238863,-446.21810783,0.00027397,2]
[311077674,1704898238872,-502.47780367,0.00027397,2]
[311077675,1704898238881,-500.0,0.00027397,2]
[311077676,1704898238891,-500.0,0.00027397,2]
[311077677,1704898238900,-500.0,0.00027397,2]
[311077678,1704898238909,-500.0,0.00027397,2]
[311077679,1704898238918,-602.12179745,0.00027397,2]
[311077680,1704898238927,-500.0,0.00027397,2]
[311077681,1704898238937,-500.0,0.00027397,2]
[311077682,1704898238946,-500.0,0.00027397,2]
[311077683,1704898238956,-500.0,0.00027397,2]
[311077684,1704898238965,-500.0,0.00027397,2]
[311077685,1704898238974,-500.0,0.00027397,2]
[311077686,1704898238984,-302.133268,0.00027397,2]
[311077687,1704898238993,-500.0,0.00027397,2]
[311077688,1704898239002,-500.0,0.00027397,2]
[311077689,1704898239011,-3313.2630203,0.00027397,2]
[311077690,1704898239021,-763.40324942,0.00027397,2]
[311077691,1704898239031,-500.0,0.00027397,2]
[311077692,1704898239040,-500.0,0.00027397,2]
[311077693,1704898239050,-500.0,0.00027397,2]
[311077694,1704898239059,-500.0,0.00027397,2]
[311077695,1704898239068,-1029.85,0.00027397,2]
[311077696,1704898239077,-508.73,0.00027397,2]
[311077697,1704898239087,-500.0,0.00027397,2]
[311077698,1704898239095,-500.0,0.00027397,2]
[311077699,1704898239104,-500.0,0.00027397,2]
[311077700,1704898239114,-500.0,0.00027397,2]
[311077701,1704898239123,-500.0,0.00027397,2]
[311077702,1704898239134,-500.0,0.00027397,2]
[311077703,1704898239143,-7574.25,0.00027397,2]
[311077704,1704898239152,-500.0,0.00027397,2]
[311077705,1704898239162,-500.0,0.00027397,2]
[311077706,1704898239171,-500.0,0.00027397,2]
[311077707,1704898239180,-500.0,0.00027397,2]
[311077708,1704898239189,-500.0,0.00027397,2]
[311077709,1704898239207,-500.0,0.00027397,2]
[311077710,1704898239220,-500.0,0.00027397,2]